fUST/lending_fUST_20250817
["ID","MTS","AMOUNT","RATE_DAILY","PERIOD"]
[379880013,1755430251027,-305.0,0.00020797,2]
[379880015,1755430251036,-156.057746,0.000208,4]
[379880017,1755430251045,-21533.99999902,0.00020816,2]
[379880019,1755430251054,-162.70618793,0.00020822,2]
[379880021,1755430251064,-150.06286568,0.00020822,2]
[379880023,1755430251073,-1000.0,0.00020829,2]
[379880025,1755430251082,-200.0,0.0002083,2]
[379880027,1755430251091,-1150.0,0.00020834,2]
[379880029,1755430251100,-1000.0,0.00020834,2]
[379880031,1755430251109,-500.0,0.00020834,2]
[379880033,1755430251118,-1000.0,0.00020834,2]
[379880035,1755430251128,-1000.0,0.00020834,2]
[379880037,1755430251137,-1000.0,0.00020834,2]
[379880039,1755430251146,-1000.0,0.00020834,2]
[379880041,1755430251155,-1000.0,0.00020834,2]
[379880043,1755430251164,-1000.0,0.00020834,2]
[379880045,1755430251172,-1000.0,0.00020834,2]
[379880047,1755430251182,-1000.0,0.00020834,2]
[379880048,1755430251191,-500.0,0.00020834,2]
[379880050,1755430251200,-1000.0,0.00020834,2]
[379880052,1755430251209,-1000.0,0.00020844,2]
[379880054,1755430251219,-517.51697819,0.00020851,2]
[379880056,1755430251228,-1000.0,0.00020851,2]
[379880058,1755430251238,-1000.0,0.00020851,2]
[379880060,1755430251247,-1000.0,0.00020854,2]
[379880062,1755430251256,-1000.0,0.00020854,2]
[379880064,1755430251265,-1000.0,0.00020854,2]
[379880066,1755430251275,-972.0,0.00020871,2]
[379880068,1755430251285,-2153.0,0.00020871,2]
[379880070,1755430251294,-637.0,0.00020871,2]
[379880072,1755430251303,-408.0,0.00020871,2]
[379880074,1755430251313,-422.367,0.00020871,2]
[379880076,1755430251322,-800.0,0.00020886,2]
[379880078,1755430251331,-160.0,0.00020896,2]
[379880080,1755430251341,-251.18849334,0.000209,2]
[379880082,1755430251350,-4144.8200994,0.00020907,2]
[379880084,1755430251359,-800.0,0.00020911,2]
[379880086,1755430251368,-800.0,0.00020913,2]
[379880088,1755430251378,-986.25898321,0.00020913,2]
[379880090,1755430251386,-334.2,0.00020929,3]
[379880092,1755430251395,-156.057746,0.0002093,20]
[379880094,1755430251405,-241.4873899,0.00020944,2]
[379880096,1755430251419,-151.0,0.00020944,2]
[379880098,1755430251428,-198.0,0.00020944,2]
[379880100,1755430251438,-1411.0,0.00020944,2]
[379880102,1755430251447,-1411.0,0.00020944,2]
[379880104,1755430251458,-151.0,0.00020944,2]
[379880105,1755430251467,-151.0,0.00020944,2]
[379880106,1755430251476,-151.0,0.00020944,2]
[379880107,1755430251486,-151.27511705,0.00020944,2]
[379880108,1755430251495,-181.45903553,0.00020944,2]
[379880109,1755430251503,-151.0,0.00020944,2]
[379880110,1755430251513,-151.0,0.00020944,2]
[379880111,1755430251522,-151.0,0.00020944,2]
[379880112,1755430251530,-151.0,0.00020944,2]
[379880113,1755430251539,-151.0,0.00020944,2]
[379880114,1755430251549,-203.56997802,0.00020944,2]
[379880115,1755430251557,-500.0,0.00020944,2]
[379880116,1755430251566,-500.0,0.00020944,2]
[379880117,1755430251575,-151.0,0.00020944,2]
[379880118,1755430251584,-151.0,0.00020944,2]
[379880119,1755430251593,-480.0,0.0002097,2]
[379880120,1755430251602,-480.0,0.0002097,2]
[379880121,1755430251610,-1508.74,0.0002097,2]
[379880122,1755430251619,-1168.17,0.0002097,2]
[379880123,1755430251629,-18502.69577858,0.0002098,2]
[379880124,1755430251638,-151.0,0.0002098,2]
[379880125,1755430251647,-575.81,0.00020982,2]
[379880126,1755430251656,-1028.3,0.00020982,2]
[379880127,1755430251665,-489.31,0.00020982,2]
[379880128,1755430251674,-1959.51,0.00020982,2]
[379880129,1755430251684,-1181.6,0.00020982,2]
[379880130,1755430251693,-480.0,0.00020982,2]
[379880131,1755430251702,-502.33,0.00020982,2]
[379880132,1755430251711,-798.72,0.00020982,2]
[379880133,1755430251720,-498.67,0.00020982,2]
[379880134,1755430251729,-480.0,0.00020982,2]
[379880135,1755430251737,-886.73,0.00020982,2]
[379880136,1755430251746,-518.34049759,0.00020982,2]
[379880137,1755430251755,-480.0,0.00020982,2]
[379880138,1755430251765,-480.0,0.00020982,2]
[379880139,1755430251773,-480.0,0.00020982,2]
[379880140,1755430251783,-544.57,0.00020982,2]
[379880141,1755430251793,-480.0,0.00020982,2]
[379880142,1755430251802,-480.0,0.00020982,2]
[379880143,1755430251810,-480.0,0.00020982,2]
[379880144,1755430251819,-480.0,0.00020982,2]
[379880145,1755430251828,-499.1,0.00020982,2]
[379880146,1755430251838,-3044.81,0.00020982,2]
[379880147,1755430251846,-487.11,0.00020982,2]
[379880148,1755430251855,-714.17,0.00020982,2]
[379880149,1755430251864,-529.04,0.00020982,2]
[379880150,1755430251873,-688.84,0.00020983,2]
[379880151,1755430251882,-650.57,0.00020983,2]
[379880152,1755430251891,-480.0,0.00020983,2]
[379880153,1755430251900,-480.0,0.00020983,2]
[379880155,1755430251909,-480.0,0.00020983,2]
[379880157,1755430251919,-480.0,0.00020983,2]
[379880159,1755430251928,-531.88,0.00020983,2]
[379880161,1755430251937,-156.057746,0.00020983,3]
[379880163,1755430251946,-480.0,0.00020983,2]
[379880165,1755430251956,-480.0,0.00020983,2]
[379880167,1755430251964,-1056.33,0.00020983,2]
[379880169,1755430251973,-480.0,0.00020983,2]
[379880171,1755430251983,-599.32,0.00020983,2]
[379880173,1755430251992,-838.54,0.00020983,2]
[379880175,1755430252001,-480.0,0.00020983,2]
[379880177,1755430252011,-429.301278,0.00020983,2]
[379880179,1755430252020,-535.36,0.00020983,2]
[379880181,1755430252029,-480.0,0.00020983,2]
[379880183,1755430252038,-1701.1,0.00020986,3]
[379880185,1755430252048,-162.70618793,0.00020986,2]
[379880187,1755430252057,-150.06286568,0.00020986,2]
[379880189,1755430252066,-800.0,0.00020989,2]
[379880190,1755430252076,-156.057746,0.00020989,7]
[379880192,1755430252085,-527.01662685,0.00020991,2]
[379880206,1755430252204,-480.0,0.00020991,2]
[379880208,1755430252215,-480.0,0.00020991,2]
[379880210,1755430252225,-480.0,0.00020991,2]
[379880212,1755430252235,-421.71,0.00020991,2]
[379880214,1755430252244,-480.0,0.00020991,2]
[379880216,1755430252254,-480.0,0.00020991,2]
[379880218,1755430252263,-958.76,0.00020991,2]
[379880220,1755430252272,-690.4,0.00020991,2]
[379880222,1755430252282,-480.0,0.00020991,2]
[379880224,1755430252291,-480.0,0.00020991,2]
[379880226,1755430252300,-6277.47,0.00020991,2]
[379880228,1755430252309,-597.43,0.00020991,2]
[379880230,1755430252318,-1937.56,0.00020991,2]
[379880232,1755430252327,-1343.35,0.00020991,2]
[379880234,1755430252337,-480.0,0.00020992,2]
[379880236,1755430252346,-6668.92,0.00020992,2]
[379880238,1755430252355,-767.31,0.00020992,2]
[379880240,1755430252364,-4525.14,0.00020992,2]
[379880242,1755430252373,-223.90296938,0.00020993,2]
[379880244,1755430252382,-480.0,0.00020993,2]
[379880246,1755430252391,-480.0,0.00020993,2]
[379880248,1755430252401,-297.16424965,0.00020993,2]
[379880250,1755430252413,-480.0,0.00020993,2]
[379880252,1755430252422,-480.0,0.00020993,2]
[379880254,1755430252431,-480.0,0.00020993,2]
[379880256,1755430252440,-480.0,0.00020993,2]
[379880258,1755430252449,-480.0,0.00020993,2]
[379880260,1755430252458,-1053.7,0.00020993,2]
[379880262,1755430252467,-750.92,0.00020993,2]
[379880264,1755430252475,-480.0,0.00020993,2]
[379880266,1755430252484,-662.97,0.00020993,2]
[379880268,1755430252493,-480.0,0.00020993,2]
[379880269,1755430252502,-593.33,0.00020993,2]
[379880271,1755430252511,-480.0,0.00020993,2]
[379880273,1755430252521,-1808.22,0.00020993,2]
[379880275,1755430252531,-480.0,0.00020993,2]
[379880277,1755430252540,-546.35,0.00020993,2]
[379880279,1755430252549,-193.534483,0.00020995,2]
[379880281,1755430252559,-193.534483,0.00020995,2]
[379880283,1755430252568,-480.0,0.00020995,2]
[379880285,1755430252577,-2412.17,0.00020995,2]
[379880287,1755430252586,-613.8256919,0.00020995,2]
[379880289,1755430252595,-890.92,0.00020995,2]
[379880291,1755430252604,-157.0,0.00021,2]
[379880293,1755430252614,-157.0,0.00021,3]
[379880295,1755430252623,-157.0,0.00021,3]
[379880297,1755430252632,-157.0,0.00021,3]
[379880299,1755430252641,-157.0,0.00021,3]
[379880301,1755430252650,-157.0,0.00021,4]
[379880303,1755430252659,-157.0,0.00021,4]
[379880305,1755430252668,-50000.00000057,0.00021,14]
[379880307,1755430252677,-1273.64005974,0.00021,2]
[379880309,1755430252686,-271.45101516,0.00021,2]
[379880311,1755430252695,-150.999999,0.00021,2]
[379880313,1755430252704,-323.36689829,0.00021,2]
[379880315,1755430252713,-645.0,0.00021,2]
[379880317,1755430252722,-397.87704058,0.00021013,2]
[379880319,1755430252731,-800.0,0.00021016,2]
[379880321,1755430252740,-156.057746,0.00021025,4]
[379880323,1755430252749,-800.0,0.00021079,2]
[379880325,1755430252758,-334.2,0.00021082,3]
[379880327,1755430252767,-500.0,0.00021095,2]
[379880329,1755430252776,-420.89638538,0.0002111,2]
[379880331,1755430252787,-3000.0,0.0002112,2]
[379880333,1755430252796,-3000.0,0.0002113,2]
[379880335,1755430252805,-3000.0,0.0002114,2]
[379880337,1755430252814,-160.0,0.00021148,5]
[379880339,1755430252823,-166.0,0.00021149,2]
[379880341,1755430252831,-166.0,0.00021149,2]
[379880343,1755430252840,-1762.0,0.00021149,2]
[379880345,1755430252849,-1762.0,0.00021149,2]
[379880347,1755430252857,-1762.0,0.00021149,2]
[379880349,1755430252867,-1762.0,0.00021149,2]
[379880351,1755430252875,-1762.0,0.00021149,2]
[379880353,1755430252884,-1762.0,0.00021149,2]
[379880355,1755430252893,-1762.0,0.00021149,2]
[379880357,1755430252902,-1762.0,0.00021149,2]
[379880359,1755430252912,-1762.0,0.00021149,2]
[379880361,1755430252921,-1762.0,0.00021149,2]
[379880363,1755430252930,-1762.0,0.00021149,2]
[379880365,1755430252938,-1762.0,0.00021149,2]
[379880367,1755430252947,-1762.0,0.00021149,2]
[379880369,1755430252955,-1762.0,0.00021149,2]
[379880371,1755430252964,-1762.0,0.00021149,2]
[379880373,1755430252973,-1762.0,0.00021149,2]
[379880375,1755430252982,-1762.0,0.00021149,2]
[379880377,1755430252992,-1762.0,0.00021149,2]
[379880379,1755430253001,-1762.0,0.00021149,2]
[379880381,1755430253010,-1762.0,0.00021149,2]
[379880383,1755430253019,-1762.0,0.00021149,2]
[379880385,1755430253028,-1762.0,0.00021149,2]
[379880386,1755430253037,-1762.0,0.00021149,2]
[379880388,1755430253047,-1762.0,0.00021149,2]
[379880390,1755430253056,-1762.0,0.00021149,2]
[379880392,1755430253065,-1762.0,0.00021149,2]
[379880394,1755430253074,-1762.0,0.00021149,2]
[379880396,1755430253083,-1762.0,0.00021149,2]
[379880398,1755430253091,-1762.0,0.00021149,2]
[379880400,1755430253100,-1762.0,0.00021149,2]
[379880402,1755430253109,-1762.0,0.00021149,2]
[379880404,1755430253119,-1762.0,0.00021149,2]
[379880406,1755430253129,-1762.0,0.00021149,2]
[379880408,1755430253138,-1762.0,0.00021149,2]
[379880410,1755430253147,-1762.0,0.00021149,2]
[379880412,1755430253156,-1762.0,0.00021149,2]
[379880414,1755430253166,-1762.0,0.00021149,2]
[379880416,1755430253175,-1762.0,0.00021149,2]
[379880418,1755430253185,-1762.0,0.00021149,2]
[379880420,1755430253194,-1762.0,0.00021149,2]
[379880422,1755430253203,-326.0,0.00021149,2]
[379880424,1755430253212,-1762.0,0.00021149,2]
[379880426,1755430253222,-326.0,0.00021149,2]
[379880428,1755430253231,-1762.0,0.00021149,2]
[379880430,1755430253240,-326.0,0.00021149,2]
[379880432,1755430253249,-1762.0,0.00021149,2]
[379880434,1755430253259,-326.0,0.00021149,2]
[379880436,1755430253268,-1762.0,0.00021149,2]
[379880438,1755430253277,-1762.0,0.00021149,2]
[379880441,1755430253297,-326.0,0.00021149,2]
[379880443,1755430253318,-1762.0,0.00021149,2]
[379880445,1755430253328,-326.0,0.00021149,2]
[379880447,1755430253338,-1762.0,0.00021149,2]
[379880449,1755430253347,-326.0,0.00021149,2]
[379880451,1755430253357,-1762.0,0.00021149,2]
[379880453,1755430253377,-326.0,0.00021149,2]
[379880455,1755430253400,-1515.09490455,0.00021149,2]
[379880484,1755430253674,242.45,0.00019296,2]
[379881352,1755430280372,619.81759975,0.000189,2]
[379881353,1755430325182,261.63178041,0.00019412,2]
[379881354,1755430336819,233.11,0.00019298,2]
[379881355,1755430372335,500.0,0.00018986,2]
[379881356,1755430389380,793.088595,0.00013699,2]
[379881357,1755430419944,235.01,0.00019318,2]
[379881358,1755430429474,172.1845301,0.00019411,2]
[379881359,1755430476370,207.74594894,0.00019311,2]
[379881360,1755430502223,300.0,0.0001951,2]
[379881361,1755430502566,300.0,0.0001951,2]
[379881362,1755430502672,300.0,0.0001951,2]
[379881363,1755430502822,300.0,0.0001951,2]
[379881364,1755430504652,232.02,0.00019351,2]
[379881365,1755430510168,1200.0,0.0001951,2]
[379881366,1755430521141,8542.90628938,0.000195,2]
[379881367,1755430521166,11457.09371062,0.000195,2]
[379881368,1755430533099,18542.90628938,0.00019411,2]
[379881369,1755430533124,13946.41478749,0.00019411,2]
[379881371,1755430581545,413.21173317,0.000189,2]
[379881372,1755430590649,230.97,0.00019293,2]
[379881373,1755430622342,300.0,0.0001951,2]
[379881374,1755430652281,7844.8844435,0.00018578,2]
[379881375,1755430658923,7264.51903584,0.000195,2]
[379881376,1755430658945,30000.0,0.000195,2]
[379881377,1755430659136,22735.48096416,0.000195,2]
[379881378,1755430674483,228.04,0.00019292,2]
[379881380,1755430712887,666.0,0.00019178,2]
[379881381,1755430743610,300.0,0.0001951,2]
[379881382,1755430759660,238.13,0.00019295,2]
[379881383,1755430802661,300.0,0.0001951,2]
[379881384,1755430802775,300.0,0.0001951,2]
[379881385,1755430803507,1200.0,0.0001951,2]
[379881386,1755430823419,4032.34903584,0.000195,2]
[379881387,1755430823442,30000.0,0.000195,2]
[379881388,1755430823465,25967.65096416,0.000195,2]
[379881391,1755430843788,235.1,0.00019296,2]
[379881397,1755430863310,300.0,0.0001951,2]
[379881401,1755430882884,524.83770373,0.000189,2]
[379881402,1755430902820,1200.0,0.0001951,2]
[379881403,1755430924133,300.0,0.0001951,2]
[379881404,1755430929737,232.11,0.00019295,2]
[379881405,1755430946484,1240.30133211,0.00019498,2]
[379881406,1755430946506,2731.54362564,0.00019498,2]
[379881408,1755430981879,170.7762149,0.0001872,2]
[379881409,1755430983365,300.0,0.0001951,2]
[379881411,1755430985679,314.067309,0.00018572,2]
[379881412,1755430986706,26483.61285046,0.00019499,2]
[379881413,1755430986730,30000.0,0.00019499,2]
[379881414,1755430986753,3516.38714954,0.00019499,2]
[379881415,1755431014522,229.15,0.00019295,2]
[379881416,1755431028742,287.09529391,0.00018926,2]
[379881417,1755431044178,300.0,0.0001951,2]
[379881420,1755431102993,300.0,0.0001951,2]
[379881421,1755431105871,226.24,0.00019295,2]
[379881422,1755431109787,1200.0,0.0001951,2]
[379881423,1755431111515,472.01750494,0.0001951,2]
[379881425,1755431114953,480.0,0.0001951,2]
[379881426,1755431117253,480.0,0.0001951,2]
[379881427,1755431126600,460.0,0.0001951,2]
[379881428,1755431131320,480.0,0.0001951,2]
[379881429,1755431133231,480.0,0.0001951,2]
[379881430,1755431149828,480.0,0.0001951,2]
[379881431,1755431150591,20609.11005161,0.00019488,2]
[379881432,1755431150614,30000.0,0.00019488,2]
[379881433,1755431150636,9390.88994839,0.00019488,2]
[379881434,1755431152215,520.57745074,0.0001951,2]
[379881435,1755431154089,462.05947056,0.0001951,2]
[379881436,1755431159276,5000.0,0.0001951,2]
[379881437,1755431163031,300.0,0.0001951,2]
[379881438,1755431165288,480.0,0.0001951,2]
[379881439,1755431165830,491.28,0.0001951,2]
[379881440,1755431166778,480.0,0.0001951,2]
[379881441,1755431167456,5000.0,0.0001951,2]
[379881442,1755431176099,5000.0,0.0001951,2]
[379881443,1755431184222,416.38865981,0.000189,2]
[379881444,1755431185672,2458.8044705,0.0001951,2]
[379881445,1755431185695,2541.1955295,0.0001951,2]
[379881446,1755431186806,480.0,0.0001951,2]
[379881447,1755431188757,460.0,0.0001951,2]
[379881448,1755431189806,1555.23,0.0001951,2]
[379881449,1755431190575,480.0,0.0001951,2]
[379881450,1755431192661,223.36,0.00019294,2]
[379881451,1755431194248,460.0,0.0001951,2]
[379881452,1755431194382,5000.0,0.0001951,2]
[379881453,1755431202666,840.0,0.0001951,2]
[379881454,1755431203042,324.98,0.00019502,3]
[379881455,1755431203955,5000.0,0.0001951,2]
[379881456,1755431208119,480.0,0.0001951,2]
[379881457,1755431209704,480.0,0.0001951,2]
[379881458,1755431212046,5000.0,0.0001951,2]
[379881459,1755431214880,466.78298765,0.0001951,2]
[379881460,1755431217788,480.0,0.0001951,2]
[379881461,1755431220050,480.0,0.0001951,2]
[379881462,1755431220442,460.0,0.0001951,2]
[379881463,1755431220774,4788.45148285,0.00018515,2]
[379881464,1755431220798,2637.79501235,0.00018515,2]
[379881465,1755431221562,5000.0,0.0001951,2]
[379881466,1755431222201,480.0,0.0001951,2]
[379881467,1755431222486,300.0,0.0001951,2]
[379881468,1755431226594,480.0,0.0001951,2]
[379881469,1755431230474,5000.0,0.0001951,2]
[379881470,1755431233417,480.0,0.0001951,2]
[379881471,1755431234992,480.0,0.0001951,2]
[379881472,1755431238622,5000.0,0.0001951,2]
[379881473,1755431239361,480.0,0.0001951,2]
[379881474,1755431240338,480.0,0.0001951,2]
[379881475,1755431243172,480.0,0.0001951,2]
[379881476,1755431245089,480.0,0.0001951,2]
[379881477,1755431246280,460.0,0.0001951,2]
[379881478,1755431247491,5000.0,0.0001951,2]
[379881479,1755431247761,480.0,0.0001951,2]
[379881480,1755431248199,466.73548157,0.0001951,2]
[379881482,1755431253069,480.0,0.0001951,2]
[379881483,1755431253825,1209.46,0.0001951,2]
[379881484,1755431254924,126.00950608,0.0001951,2]
[379881485,1755431254946,353.99049392,0.0001951,2]
[379881486,1755431257566,500.0,0.0001951,2]
[379881487,1755431257859,500.0,0.0001951,2]
[379881488,1755431258112,500.0,0.0001951,2]
[379881489,1755431259340,480.0,0.0001951,2]
[379881490,1755431261492,480.0,0.0001951,2]
[379881491,1755431265067,5000.0,0.0001951,2]
[379881492,1755431266043,480.0,0.0001951,2]
[379881493,1755431267347,461.2872879,0.0001951,2]
[379881494,1755431270199,480.0,0.0001951,2]
[379881495,1755431270905,480.0,0.0001951,2]
[379881496,1755431272282,480.0,0.0001951,2]
[379881497,1755431273273,480.0,0.0001951,2]
[379881498,1755431274441,480.0,0.0001951,2]
[379881499,1755431276312,480.0,0.0001951,2]
[379881500,1755431277504,480.0,0.0001951,2]
[379881501,1755431277645,220.51,0.00019294,2]
[379881502,1755431278567,462.31055714,0.0001951,2]
[379881503,1755431279574,480.0,0.0001951,2]
[379881504,1755431281541,480.0,0.0001951,2]
[379881505,1755431282830,480.0,0.0001951,2]
[379881506,1755431287075,3211.14853116,0.00019411,2]
[379881507,1755431293506,500.0,0.00018986,2]
[379881508,1755431295528,480.0,0.0001951,2]
[379881509,1755431303260,604.72,0.0001951,2]
[379881510,1755431305890,480.0,0.0001951,2]
[379881511,1755431308597,480.0,0.0001951,2]
[379881512,1755431311715,480.0,0.0001951,2]
[379881513,1755431313638,500.0,0.0001951,2]
[379881514,1755431313667,500.0,0.0001951,2]
[379881515,1755431313870,500.0,0.0001951,2]
[379881516,1755431313899,500.0,0.0001951,2]
[379881517,1755431313931,500.0,0.0001951,2]
[379881518,1755431313958,500.0,0.0001951,2]
[379881519,1755431313993,325.78951412,0.0001951,2]
[379881520,1755431314022,500.0,0.0001951,2]
[379881521,1755431314052,500.0,0.0001951,2]
[379881522,1755431314080,500.0,0.0001951,2]
[379881523,1755431314109,500.0,0.0001951,2]
[379881524,1755431314141,500.0,0.0001951,2]
[379881525,1755431314176,500.0,0.0001951,2]
[379881526,1755431314206,500.0,0.0001951,2]
[379881527,1755431314235,500.0,0.0001951,2]
[379881528,1755431314264,500.0,0.0001951,2]
[379881529,1755431314292,500.0,0.0001951,2]
[379881530,1755431314319,500.0,0.0001951,2]
[379881531,1755431314346,447.47435998,0.0001951,2]
[379881532,1755431314374,252.76925578,0.0001951,2]
[379881533,1755431314405,129.58898373,0.0001951,2]
[379881534,1755431314433,500.0,0.0001951,2]
[379881535,1755431314462,500.0,0.0001951,2]
[379881536,1755431314494,500.0,0.0001951,2]
[379881537,1755431314521,373.89799678,0.0001951,2]
[379881538,1755431314551,450.57787135,0.0001951,2]
[379881539,1755431314634,500.0,0.0001951,2]
[379881540,1755431314664,468.50360838,0.0001951,2]
[379881541,1755431314692,396.76964763,0.0001951,2]
[379881542,1755431314719,500.0,0.0001951,2]
[379881543,1755431314745,500.0,0.0001951,2]
[379881544,1755431314773,500.0,0.0001951,2]
[379881545,1755431314801,500.0,0.0001951,2]
[379881546,1755431314828,500.0,0.0001951,2]
[379881547,1755431314855,500.0,0.0001951,2]
[379881548,1755431314886,500.0,0.0001951,2]
[379881549,1755431314914,500.0,0.0001951,2]
[379881550,1755431314947,500.0,0.0001951,2]
[379881551,1755431314981,500.0,0.0001951,2]
[379881552,1755431315012,500.0,0.0001951,2]
[379881553,1755431315040,500.0,0.0001951,2]
[379881554,1755431315069,500.0,0.0001951,2]
[379881555,1755431315100,500.0,0.0001951,2]
[379881556,1755431315126,500.0,0.0001951,2]
[379881557,1755431315158,500.0,0.0001951,2]
[379881558,1755431315189,500.0,0.0001951,2]
[379881559,1755431315218,500.0,0.0001951,2]
[379881560,1755431315247,500.0,0.0001951,2]
[379881561,1755431315275,500.0,0.0001951,2]
[379881562,1755431315302,500.0,0.0001951,2]
[379881563,1755431315333,500.0,0.0001951,2]
[379881564,1755431315361,500.0,0.0001951,2]
[379881565,1755431315389,500.0,0.0001951,2]
[379881566,1755431315419,500.0,0.0001951,2]
[379881567,1755431315451,500.0,0.0001951,2]
[379881568,1755431315478,500.0,0.0001951,2]
[379881569,1755431315507,586.92243205,0.0001951,2]
[379881570,1755431315534,500.0,0.0001951,2]
[379881571,1755431315565,500.0,0.0001951,2]
[379881572,1755431315592,500.0,0.0001951,2]
[379881573,1755431315618,500.0,0.0001951,2]
[379881574,1755431315649,500.0,0.0001951,2]
[379881575,1755431315677,500.0,0.0001951,2]
[379881576,1755431315703,500.0,0.0001951,2]
[379881577,1755431315730,500.0,0.0001951,2]
[379881578,1755431315757,500.0,0.0001951,2]
[379881579,1755431315785,500.0,0.0001951,2]
[379881580,1755431315812,500.0,0.0001951,2]
[379881581,1755431315841,500.0,0.0001951,2]
[379881582,1755431315868,242.72680147,0.0001951,2]
[379881583,1755431315894,500.0,0.0001951,2]
[379881584,1755431315924,500.0,0.0001951,2]
[379881585,1755431315952,500.0,0.0001951,2]
[379881586,1755431315987,500.0,0.0001951,2]
[379881587,1755431316017,500.0,0.0001951,2]
[379881588,1755431316043,512.0721443,0.0001951,2]
[379881589,1755431316071,500.0,0.0001951,2]
[379881590,1755431316098,500.0,0.0001951,2]
[379881591,1755431316125,500.0,0.0001951,2]
[379881592,1755431316155,500.0,0.0001951,2]
[379881593,1755431316184,500.0,0.0001951,2]
[379881594,1755431316216,338.94051431,0.0001951,2]
[379881595,1755431316241,161.05948569,0.0001951,2]
[379881596,1755431316269,500.0,0.0001951,2]
[379881597,1755431316437,500.0,0.0001951,2]
[379881598,1755431316465,500.0,0.0001951,2]
[379881599,1755431316496,500.0,0.0001951,2]
[379881600,1755431316526,500.0,0.0001951,2]
[379881601,1755431316556,500.0,0.0001951,2]
[379881602,1755431316586,500.0,0.0001951,2]
[379881603,1755431316621,500.0,0.0001951,2]
[379881604,1755431316650,500.0,0.0001951,2]
[379881605,1755431316678,500.0,0.0001951,2]
[379881606,1755431316707,500.0,0.0001951,2]
[379881607,1755431316739,500.0,0.0001951,2]
[379881608,1755431316772,500.0,0.0001951,2]
[379881609,1755431316798,500.0,0.0001951,2]
[379881610,1755431316826,500.0,0.0001951,2]
[379881611,1755431316854,500.0,0.0001951,2]
[379881612,1755431316882,480.0,0.0001951,2]
[379881613,1755431316910,502.66139072,0.0001951,2]
[379881614,1755431316940,500.0,0.0001951,2]
[379881615,1755431316970,500.0,0.0001951,2]
[379881616,1755431316997,500.0,0.0001951,2]
[379881617,1755431317026,500.0,0.0001951,2]
[379881618,1755431317063,500.0,0.0001951,2]
[379881619,1755431317096,500.0,0.0001951,2]
[379881620,1755431317123,500.0,0.0001951,2]
[379881621,1755431317164,500.0,0.0001951,2]
[379881622,1755431317192,500.0,0.0001951,2]
[379881623,1755431317225,500.0,0.0001951,2]
[379881624,1755431317253,500.0,0.0001951,2]
[379881625,1755431317284,500.0,0.0001951,2]
[379881626,1755431317318,500.0,0.0001951,2]